bitfinex/quotes_ETHUSD_20251023
["timestamp","ask_amount","ask_price","bid_price","bid_amount"]
[1761230045654,0.1028,3840.7,3839.5,0.50688]
[1761230045854,0.1028,3840.7,3838.5,0.4466]
[1761230046219,0.1028,3840.7,3838.6,2.60511644]
[1761230046555,0.1028,3840.7,3840.0,0.50688]
[1761230046758,3.416,3840.6,3839.5,0.50688]
[1761230046965,3.416,3840.6,3839.1,0.2201]
[1761230046966,1.5552,3840.5,3839.9,0.50688]
[1761230047120,1.658,3840.5,3839.9,0.50688]
[1761230047323,0.1028,3840.4,3839.8,0.50688]
[1761230047619,1.5552,3840.5,3839.8,0.50688]
[1761230047620,1.658,3840.5,3839.8,0.50688]
[1761230047818,3.416,3840.6,3840.1,2.60409529]
[1761230048044,3.416,3840.6,3840.2,0.50688]
[1761230048272,0.1304,3840.3,3840.0,2.60414373]
[1761230048449,3.416,3840.6,3840.3,0.50688]
[1761230048748,0.1304,3840.4,3840.3,3.11084323]
[1761230048949,0.1635,3841.0,3840.3,3.11084323]
[1761230048950,0.1635,3841.0,3840.9,3.11043645]
[1761230049162,0.1673,3841.4,3841.1,0.50688]
[1761230049565,0.1673,3841.4,3841.2,0.50688]
[1761230049770,0.1673,3841.4,3841.2,3.1101855]
[1761230049916,0.1673,3841.8,3841.2,3.1101855]
[1761230050117,0.1673,3841.8,3841.2,0.50688]
[1761230050319,0.1673,3841.8,3841.1,2.60341218]
[1761230050320,0.1673,3841.8,3841.4,0.50688]
[1761230050532,0.1673,3841.8,3841.1,0.2201]
[1761230050533,0.099,3842.4,3841.7,3.10989429]
[1761230050866,2.624,3842.3,3841.8,0.50688]
[1761230051065,0.1666,3841.9,3841.2,0.50688]
[1761230051548,0.1666,3841.9,3841.1,0.50688]
[1761230051753,0.0997,3841.8,3841.1,0.50688]
[1761230051958,0.0997,3841.8,3840.6,0.50688]
[1761230052269,0.0997,3841.8,3839.9,0.74657849]
[1761230052565,1.6549,3841.8,3840.5,2.60380961]
[1761230052730,0.0997,3841.8,3840.0,0.4466]
[1761230052961,0.0997,3841.7,3840.4,2.60385534]
[1761230053148,0.0997,3841.7,3840.4,2.60384596]
[1761230053149,1.6549,3841.7,3840.4,2.60384596]
[1761230053464,1.5552,3841.3,3839.9,0.52647849]
[1761230053667,1.5552,3841.1,3839.9,0.52647849]
[1761230054043,0.0997,3841.0,3839.9,0.52647849]
[1761230054241,2.60355645,3840.9,3839.9,0.52647849]
[1761230054477,0.0997,3841.0,3840.0,2.60416666]
[1761230054653,0.0997,3841.0,3839.9,0.52647849]
[1761230054857,0.0997,3841.0,3840.2,0.50688]
[1761230055267,0.003,3840.6,3840.2,0.50688]
[1761230055479,0.003,3840.6,3840.0,0.50688]
[1761230055839,0.003,3840.6,3840.0,3.11103739]
[1761230056348,0.003,3840.6,3840.0,0.50688]
[1761230056701,0.003,3840.6,3840.2,0.50688]
[1761230057285,0.003,3840.6,3840.5,3.11070762]
[1761230057644,0.003,3840.6,3840.5,3.55730762]
[1761230057841,0.105,3842.3,3842.1,0.50688]
[1761230058079,0.105,3842.3,3840.9,0.50688]
[1761230058380,0.105,3842.3,3840.6,1.5552]
[1761230058582,0.105,3842.3,3841.9,0.50688]
[1761230058961,0.1304,3842.0,3841.9,0.50688]
[1761230059358,0.1042,3842.3,3841.4,0.50688]
[1761230059557,0.1042,3842.3,3841.7,3.10988067]
[1761230059855,0.1042,3842.3,3841.9,0.50688]
[1761230060243,0.1042,3842.3,3841.8,2.60289591]
[1761230060471,0.1042,3842.3,3841.9,0.50688]
[1761230060675,0.1042,3842.3,3842.2,0.50688]
[1761230061273,0.1042,3842.3,3842.2,3.32965555]
[1761230061710,0.1042,3842.3,3842.2,3.77625555]
[1761230062010,0.6,3843.0,3842.6,0.50688]
[1761230062508,0.6,3843.0,3842.9,0.50688]
[1761230063702,0.6,3843.0,3842.9,3.10908146]
[1761230064075,0.6,3843.0,3842.9,3.55568146]
[1761230064407,0.6,3843.0,3842.9,3.10908146]
[1761230065192,0.6,3843.0,3842.9,0.50688]
[1761230065716,0.6,3843.0,3842.9,3.10908146]
[1761230066033,0.699,3843.0,3842.0,0.2201]
[1761230066182,0.699,3843.0,3842.0,2.82288332]
[1761230066506,0.699,3843.0,3842.2,2.60265837]
[1761230066722,0.699,3843.0,3842.2,2.60261965]
[1761230066915,0.699,3843.0,3842.3,0.50688]
[1761230067099,0.699,3843.0,3841.4,0.4604]
[1761230067299,0.6,3843.0,3841.7,2.60301429]
[1761230067482,0.6,3843.0,3842.3,0.50688]
[1761230067683,0.6,3843.0,3842.4,0.50688]
[1761230068116,0.6,3843.0,3842.5,0.50688]
[1761230068297,0.699,3843.0,3842.5,0.50688]
[1761230068490,0.699,3843.0,3842.3,0.50688]
[1761230068717,0.6,3843.0,3842.3,0.50688]
[1761230068920,0.6,3843.0,3840.4,2.60389516]
[1761230068921,0.6,3843.0,3842.2,0.50688]
[1761230069224,0.6,3843.0,3841.6,2.60307482]
[1761230069225,0.099,3842.9,3841.3,2.60328534]
[1761230069426,0.1304,3841.6,3841.4,2.60319994]
[1761230069727,0.099,3841.5,3840.3,0.2201]
[1761230069901,0.1304,3840.7,3840.5,2.60376317]
[1761230070107,0.1304,3840.7,3840.5,2.60377973]
[1761230070420,0.1304,3840.7,3840.1,0.2224]
[1761230070421,0.1304,3840.7,3840.4,2.6038325]
[1761230070721,3.511,3841.2,3840.4,2.60388698]
[1761230070923,0.1304,3840.5,3840.4,2.60388698]
[1761230071227,1.6542,3841.1,3839.9,0.96927849]
[1761230071535,3.412,3841.2,3839.9,0.52647849]
[1761230071764,3.412,3841.2,3840.0,0.4428]
[1761230071888,3.412,3841.2,3840.9,0.50688]
[1761230072090,3.412,3841.2,3840.9,3.11042951]
[1761230072291,3.412,3841.2,3840.9,0.50688]
[1761230072500,0.099,3841.1,3840.9,0.50688]
[1761230072725,1.6542,3841.1,3840.8,0.50688]
[1761230072896,1.5552,3841.1,3840.8,0.50688]
[1761230073102,3.412,3841.2,3841.0,2.6034296]
[1761230073300,3.412,3841.2,3840.5,0.50688]
[1761230073613,3.412,3841.2,3841.1,3.33270089]
[1761230073927,3.20214795,3843.0,3841.7,0.50688]
[1761230073928,0.1653,3841.9,3841.7,0.50688]
[1761230074122,0.1653,3841.9,3841.8,3.10982653]
[1761230074321,0.0997,3842.4,3841.9,0.50688]
[1761230074522,0.1646,3842.0,3841.9,0.50688]
[1761230074725,5.364,3842.5,3841.9,0.50688]
[1761230074726,5.364,3842.5,3842.0,3.10964279]
[1761230075037,5.364,3842.5,3842.0,0.50688]
[1761230075243,1.6542,3842.4,3841.8,3.10980413]
[1761230075449,1.6542,3842.4,3842.0,0.50688]
[1761230075658,1.5552,3842.4,3842.0,0.50688]
[1761230076019,0.099,3842.3,3841.1,0.2224]
[1761230076327,0.099,3842.3,3840.7,2.60369203]
[1761230076649,0.099,3842.3,3840.7,1.5552]
[1761230076851,0.099,3842.3,3841.4,0.50688]
[1761230077361,0.099,3842.3,3840.8,0.4428]
[1761230077362,0.166,3842.2,3840.9,0.50688]
[1761230077521,0.166,3842.2,3841.4,0.50688]
[1761230078029,0.166,3842.2,3841.6,3.10993839]
[1761230078245,0.166,3842.2,3841.5,0.50688]
[1761230078439,0.166,3842.2,3841.7,0.50688]
[1761230078650,0.166,3842.2,3841.2,0.4428]
[1761230078855,0.166,3842.2,3841.7,0.50688]
[1761230079045,1.5552,3842.4,3841.7,3.10989098]
[1761230079559,3.20214342,3843.0,3841.9,0.50688]
[1761230079560,0.6,3843.0,3841.9,0.50688]
[1761230079726,0.6,3843.0,3841.8,0.4428]
[1761230079727,0.6,3843.0,3842.1,0.50688]
[1761230079927,0.6,3843.0,3842.3,0.50688]
[1761230080152,0.3,3843.0,3842.8,0.50688]
[1761230080347,0.3,3843.0,3842.9,3.10908146]
[1761230080549,0.3,3843.0,3842.9,0.50688]
[1761230080747,0.3,3843.0,3842.9,3.10908146]
[1761230083950,0.2992,3843.0,3842.9,3.10908146]
[1761230084551,0.2992,3843.0,3842.9,2.60220146]
[1761230084945,0.2992,3843.0,3842.9,0.50688]
[1761230085275,0.2992,3843.0,3842.9,3.10908146]
[1761230085436,0.2992,3843.0,3842.9,3.55188146]
[1761230086330,1.8552,3844.0,3843.0,0.94968]
[1761230086331,0.3,3844.0,3843.0,0.94968]
[1761230086566,0.3,3844.0,3842.9,0.50688]
[1761230086567,0.3,3844.0,3843.9,0.72928]
[1761230086863,0.3,3844.0,3843.9,0.50688]
[1761230087463,0.3,3844.0,3843.9,3.10840449]
[1761230087856,0.3,3844.0,3843.9,3.55120449]
[1761230089763,0.3,3844.0,3843.9,3.10840449]
[1761230091284,0.3,3844.0,3842.7,0.4428]
[1761230091473,0.3,3844.0,3842.9,2.60220146]
[1761230091678,0.3,3844.0,3843.5,2.60175604]
[1761230091871,0.3,3844.0,3843.3,0.50688]
[1761230092075,0.3,3844.0,3843.9,3.10840449]
[1761230092477,0.3,3844.0,3843.9,3.55120449]
[1761230092956,0.3,3844.0,3843.9,3.10840449]
[1761230093155,0.3,3844.0,3843.9,0.50688]
[1761230094562,0.399,3844.0,3843.9,0.50688]
[1761230094775,0.3,3844.0,3843.9,0.50688]
[1761230095581,0.399,3844.0,3843.3,2.60188755]
[1761230095762,0.1636,3843.9,3843.4,0.50688]
[1761230096271,0.1636,3843.9,3843.6,0.50688]
[1761230096471,0.1636,3843.9,3843.4,0.50688]
[1761230096992,0.1636,3843.9,3843.5,0.50688]
[1761230097368,0.1636,3843.9,3843.4,0.50688]
[1761230097691,0.1636,3843.9,3843.6,0.50688]
[1761230098383,0.3,3844.0,3843.6,0.50688]
[1761230099703,0.3,3844.0,3843.7,0.50688]
[1761230100105,0.3,3844.0,3843.2,0.4333]
[1761230100106,0.3,3844.0,3843.6,0.50688]
[1761230100428,0.3,3844.0,3843.6,3.10857637]
[1761230100734,0.3,3844.0,3843.8,0.50688]
[1761230100933,0.3,3844.0,3843.9,0.50688]
[1761230101236,0.3,3844.0,3843.9,0.94018]
[1761230101391,0.3,3844.0,3843.9,3.54170449]
[1761230102290,0.3,3844.3,3844.2,3.10820147]
[1761230102539,0.697724,3846.8,3845.7,0.50688]
[1761230102540,0.391,3845.8,3845.7,0.50688]
[1761230102889,0.391,3845.8,3844.1,0.2266]
[1761230102890,0.49,3845.8,3844.1,0.2266]
[1761230103086,0.099,3845.7,3844.6,0.50688]
[1761230103325,0.099,3845.7,3844.7,0.50688]
[1761230103541,0.099,3845.7,3844.5,0.50688]
[1761230103825,0.099,3845.7,3844.3,2.60123121]
[1761230103989,1.5552,3845.5,3844.4,0.50688]
[1761230104319,1.5552,3845.5,3844.1,2.82797175]
[1761230104320,1.5552,3845.5,3844.1,0.2266]
[1761230104522,0.099,3845.4,3844.4,0.50688]
[1761230104730,0.099,3845.4,3844.2,0.50688]
[1761230104891,1.5552,3845.3,3843.3,0.2266]
[1761230105086,2.69951654,3845.4,3843.5,2.60179523]
[1761230105087,0.099,3845.4,3843.5,2.60179523]
[1761230105389,0.099,3845.4,3844.7,0.50688]
[1761230105625,1.5552,3845.2,3844.7,3.10784152]
[1761230105829,1.5552,3845.2,3844.5,0.50688]
[1761230106028,3.409,3845.3,3844.3,3.10812702]
[1761230106227,3.409,3845.3,3844.6,0.50688]
[1761230106430,3.25057613,3845.3,3844.6,3.10793082]
[1761230106748,3.25057613,3845.3,3845.2,0.50688]
[1761230106959,3.25057613,3845.3,3845.2,3.10752495]
[1761230107248,3.25057613,3845.3,3844.8,0.2266]
[1761230107417,3.25057613,3845.3,3844.3,2.6011938]
[1761230107418,3.25057613,3845.3,3844.1,0.4333]
[1761230107613,3.25057613,3845.3,3844.6,0.50688]
[1761230107819,3.34957613,3845.3,3844.7,0.50688]
[1761230108242,1.6542,3845.2,3844.1,2.60133961]
[1761230108447,4.25404511,3845.2,3843.6,2.60172754]
[1761230108623,0.099,3845.1,3843.2,0.4333]
[1761230108831,0.099,3845.1,3843.4,3.03515232]
[1761230109139,0.099,3845.1,3843.8,0.50688]
[1761230109371,0.099,3845.1,3843.4,0.4333]
[1761230109651,0.099,3845.1,3844.3,0.50688]
[1761230110014,0.099,3845.1,3844.1,0.50688]
[1761230110255,0.099,3845.1,3844.1,3.10826511]
[1761230110418,0.099,3845.1,3844.1,0.50688]
[1761230110622,1.5552,3845.0,3843.9,0.50688]
[1761230110952,0.099,3845.1,3843.9,3.10839006]
[1761230111152,0.099,3845.0,3843.7,0.50688]
[1761230111454,0.099,3845.0,3844.0,0.50688]
[1761230111823,0.099,3845.0,3844.1,0.50688]
[1761230112361,0.099,3845.0,3843.3,0.6599]
[1761230112720,2.60085877,3844.9,3843.8,0.50688]
[1761230112924,1.5552,3844.5,3843.3,0.2266]
[1761230113166,0.55618341,3844.8,3843.3,0.2266]
[1761230113167,1.5552,3844.3,3843.3,0.2266]
[1761230113376,1.5552,3844.3,3843.4,2.60186293]
[1761230113562,1.5552,3844.3,3843.5,2.60179523]
[1761230113761,0.79095358,3845.1,3843.5,0.4333]
[1761230113962,3.96551974,3845.0,3843.7,2.60165985]
[1761230114164,1.5552,3844.9,3844.4,0.50688]
[1761230114539,1.5552,3844.9,3843.5,2.60175758]
[1761230114540,3.409,3845.0,3844.3,0.50688]
[1761230114746,3.409,3845.0,3844.5,0.50688]
[1761230115054,3.409,3845.0,3844.8,0.50688]
[1761230115240,3.409,3845.0,3844.9,0.50688]
[1761230116278,3.409,3845.0,3844.9,3.10772787]
[1761230116484,3.409,3845.0,3844.9,3.54102787]
[1761230116640,3.409,3845.0,3844.9,0.50688]
[1761230116841,3.409,3845.0,3844.9,3.10772787]
[1761230117948,3.409,3845.0,3844.9,0.50688]
[1761230118574,3.409,3845.0,3844.9,3.10772787]
[1761230118778,0.003,3845.8,3845.7,0.50688]
[1761230118962,0.1646,3845.7,3845.0,0.50688]
[1761230119161,0.1646,3845.7,3844.6,0.002]
[1761230119474,0.1646,3845.7,3845.2,0.50688]
[1761230119653,0.1646,3845.7,3845.0,0.50688]
[1761230120058,0.2649,3845.7,3845.0,0.50688]
[1761230120365,0.003,3845.8,3845.2,2.60058826]
[1761230120574,0.003,3845.8,3845.2,0.50688]
[1761230120745,0.1009,3845.7,3845.2,0.50688]
[1761230120944,0.1009,3845.7,3844.6,0.002]
[1761230121957,3.408,3845.7,3845.2,0.50688]
[1761230122342,0.1304,3845.3,3845.2,0.50688]
[1761230122553,0.1304,3845.3,3845.2,3.10752495]
[1761230122782,0.1304,3845.3,3845.2,3.54082495]
[1761230123449,0.1304,3845.3,3845.2,0.50688]
[1761230123849,0.166,3845.4,3844.6,0.002]
[1761230124081,3.408,3845.7,3845.0,2.60072467]
[1761230124295,3.408,3845.7,3844.6,0.4353]
[1761230124296,0.1653,3845.6,3844.6,0.002]
[1761230124568,0.1653,3845.6,3845.0,2.60073823]
[1761230124772,3.408,3845.7,3845.1,0.50688]
[1761230124968,3.408,3845.7,3845.6,0.50688]
[1761230125179,3.5384,3845.7,3845.6,0.50688]
[1761230125390,3.408,3845.7,3845.6,3.54055445]
[1761230125993,0.003,3845.8,3845.7,3.10718683]
[1761230126159,0.003,3845.8,3845.7,3.57208683]
[1761230126484,0.003,3845.8,3845.7,3.59808989]
[1761230126693,0.003,3845.8,3845.7,3.70248683]
[1761230126993,0.003,3845.8,3845.7,3.23758683]
[1761230127150,2.59907464,3847.6,3845.7,3.23758683]
[1761230127151,0.003,3847.8,3846.2,1.5552]
[1761230127470,0.003,3847.8,3846.2,0.50688]
[1761230127689,0.003,3847.8,3847.7,0.50688]
[1761230127985,0.003,3847.8,3847.4,2.59915039]
[1761230127986,0.003,3847.8,3846.5,0.50688]
[1761230128194,0.003,3847.8,3846.5,0.97178]
[1761230128392,0.003,3847.8,3847.7,3.10583522]
[1761230128591,0.003,3847.8,3847.7,0.50688]
[1761230129152,0.1027,3847.8,3846.3,0.6642]
[1761230129465,0.1027,3847.8,3847.0,3.10629056]
[1761230129673,0.003,3847.8,3847.2,0.50688]
[1761230130566,0.003,3847.8,3847.3,0.50688]
[1761230130782,0.003,3847.8,3847.7,3.10583522]
[1761230131150,0.003,3847.8,3847.7,3.54263522]
[1761230131469,0.003,3847.8,3847.7,3.10583522]
[1761230131978,0.003,3847.8,3847.7,3.54263522]
[1761230132747,0.0022,3847.8,3847.7,3.54263522]
[1761230134773,0.0022,3847.8,3847.7,2.59895522]
[1761230135089,0.0022,3847.8,3847.7,3.03575522]
[1761230135387,0.0022,3847.8,3847.0,0.4368]
[1761230135598,0.0022,3847.8,3847.6,2.59902231]
[1761230135806,0.0022,3847.8,3847.7,0.50688]
[1761230136003,0.0022,3847.8,3847.0,0.4368]
[1761230136633,0.0022,3847.8,3847.6,0.50688]
[1761230136775,0.0022,3847.8,3847.7,3.10583522]
[1761230137090,0.0022,3847.8,3847.7,3.54263522]
[1761230137291,0.0022,3847.8,3847.7,3.67223522]
[1761230138913,0.0022,3847.8,3847.7,3.54263522]
[1761230141778,0.9188568,3848.2,3848.1,3.10556506]
[1761230141978,0.9188568,3848.2,3848.1,3.77286506]
[1761230142378,0.3,3849.9,3849.5,0.50688]
[1761230142599,0.2163,3849.8,3849.5,0.50688]
[1761230143007,0.2163,3849.8,3849.7,0.50688]
[1761230143230,0.6695,3849.8,3849.7,0.50688]
[1761230144999,0.3,3849.9,3849.8,0.50688]
[1761230145334,0.9695,3849.9,3849.7,0.50688]
[1761230145508,0.4532,3849.8,3849.7,0.50688]
[1761230145708,0.4532,3849.8,3849.5,0.50688]
[1761230146030,0.4532,3849.8,3849.6,0.50688]
[1761230146208,0.4532,3849.7,3849.6,0.50688]
[1761230146414,0.4532,3849.7,3849.4,0.50688]
[1761230146805,0.4532,3849.7,3849.0,0.50688]
[1761230147227,0.4532,3849.7,3849.1,0.50688]
[1761230147921,0.4532,3849.7,3848.9,3.10501463]
[1761230148107,0.4532,3849.7,3848.8,0.50688]
[1761230148436,0.2163,3849.6,3849.4,0.50688]
[1761230148606,0.6695,3849.6,3849.4,0.50688]
[1761230148929,0.1296,3849.5,3849.4,0.50688]
[1761230149337,0.5163,3849.9,3849.5,3.10460224]
[1761230149338,0.3,3849.9,3849.5,3.10460224]
[1761230149630,0.3,3849.9,3849.8,0.50688]
[1761230150034,0.9695,3849.9,3849.8,0.50688]
[1761230150234,0.3,3849.9,3849.8,0.50688]
[1761230150441,0.9695,3849.9,3849.8,0.50688]
[1761230152929,3.733,3849.9,3849.8,0.50688]
[1761230153129,3.733,3849.9,3849.8,3.10441753]
[1761230153926,4.4025,3849.9,3849.8,0.50688]
[1761230154325,3.9493,3849.9,3849.8,0.50688]
[1761230154616,3.733,3849.9,3849.8,3.10441753]
[1761230154818,0.3,3849.9,3849.8,3.10441753]
[1761230155230,0.9695,3849.9,3849.8,0.50688]
[1761230155524,0.3,3849.9,3849.8,3.10441753]
[1761230157351,0.9687,3849.9,3849.8,0.50688]
[1761230157526,0.9687,3849.9,3849.4,2.59775923]
[1761230157727,0.4532,3849.8,3848.1,0.2325]
[1761230157932,3.437,3849.7,3848.1,0.2325]
[1761230158134,3.437,3849.7,3848.1,3.26793603]
[1761230158330,0.4532,3849.6,3848.1,2.60061924]
[1761230158534,0.4532,3849.6,3848.1,0.002]
[1761230159033,0.4532,3849.6,3848.4,2.59843292]
[1761230159252,0.4532,3849.6,3848.5,2.59838691]
[1761230159640,0.4532,3849.6,3848.1,0.002]
[1761230159842,0.4532,3849.6,3848.8,0.50688]
[1761230160230,0.3599,3848.9,3848.6,0.50688]
[1761230160558,3.438,3848.8,3848.5,2.59836516]
[1761230160762,0.5155,3849.9,3848.6,0.02598347]
[1761230160947,0.5155,3849.9,3848.1,0.5456]
[1761230160948,3.436,3849.8,3848.1,0.1174]
[1761230161261,3.436,3849.8,3848.9,0.50688]
[1761230161555,3.436,3849.8,3848.6,2.59832454]
[1761230161556,0.4556,3849.7,3849.1,0.50688]
[1761230161724,0.4556,3849.7,3848.1,0.002]
[1761230161927,0.2303,3848.2,3848.1,0.002]
[1761230162133,3.6693,3848.2,3848.1,0.002]
[1761230162337,4.1249,3848.2,3848.1,0.002]
[1761230163537,3.439,3848.2,3848.1,0.002]
[1761230163725,3.8946,3848.2,3848.1,0.002]
[1761230164120,1.5552,3848.1,3846.0,0.5436]
[1761230164345,2.0108,3848.1,3846.0,0.5436]
[1761230164561,0.4533,3848.0,3846.4,0.4282]
[1761230164759,3.8943,3848.0,3846.9,2.59948883]
[1761230165059,3.8943,3848.0,3847.1,0.50688]
[1761230165258,3.441,3847.9,3847.3,0.50688]
[1761230165435,3.442,3847.8,3847.4,0.50688]
[1761230165630,3.8953,3847.8,3847.3,0.50688]
[1761230165843,3.8953,3847.8,3847.1,2.59935781]
[1761230165844,0.4533,3847.7,3847.1,2.59935781]
[1761230166042,3.442,3847.6,3847.5,2.59909031]
[1761230166263,3.442,3847.6,3847.5,0.50688]
[1761230166470,3.442,3847.6,3846.9,2.59944708]
[1761230166471,3.446,3847.7,3847.6,0.50688]
[1761230167435,3.8993,3847.7,3847.6,0.50688]
[1761230167636,3.446,3847.7,3847.6,0.50688]
[1761230168771,3.8993,3847.7,3846.4,0.50688]
[1761230168974,3.8993,3847.7,3846.3,0.2274]
[1761230168975,0.4533,3847.6,3846.3,0.2274]
[1761230169160,0.4533,3847.6,3846.9,2.59944812]
[1761230169366,0.4533,3847.6,3846.3,0.2274]
[1761230169678,0.4533,3847.6,3846.9,2.59944954]
[1761230169872,0.4533,3847.6,3847.0,0.50688]
[1761230170043,0.4533,3847.6,3847.0,3.10628631]
[1761230170240,0.4533,3847.6,3847.0,0.50688]
[1761230170456,0.1296,3847.1,3847.0,0.50688]
[1761230170651,3.5736,3847.1,3847.0,0.50688]
[1761230170878,3.8973,3847.1,3845.5,0.4282]
[1761230171176,3.8973,3847.1,3845.1,1.5572]
[1761230171177,3.8973,3847.1,3846.6,2.59968834]
[1761230171348,3.444,3847.1,3846.7,0.50688]
[1761230171758,0.4533,3847.0,3846.4,0.50688]
[1761230171967,0.4533,3847.0,3846.4,3.10669835]
[1761230171968,0.2187,3846.8,3846.4,3.10669835]
[1761230172166,0.2187,3846.8,3845.6,0.4282]
[1761230172477,0.2187,3846.8,3846.3,2.59989541]
[1761230172683,0.2187,3846.8,3845.6,0.4282]
[1761230172884,0.2187,3846.8,3846.2,2.5999473]
[1761230173042,0.2187,3846.8,3846.3,0.50688]
[1761230173249,0.6697,3846.8,3846.3,0.50688]
[1761230173449,0.6697,3846.8,3846.0,0.50688]
[1761230173684,0.6697,3846.8,3846.3,0.50688]
[1761230174057,0.451,3846.7,3846.3,0.50688]
[1761230174383,0.4556,3848.8,3847.2,0.50688]
[1761230174588,0.4556,3848.8,3847.6,0.50688]
[1761230174589,3.444,3848.4,3847.6,0.50688]
[1761230174790,0.2302,3848.9,3848.5,0.50688]
[1761230174989,3.444,3848.8,3846.0,1.5552]
[1761230175152,0.2302,3848.9,3845.8,1.86542271]
[1761230175153,0.2302,3848.9,3846.1,3.444]
[1761230175354,0.2302,3848.9,3846.4,2.59983361]
[1761230175355,0.548,3848.9,3846.4,2.59983361]
[1761230175651,0.548,3848.9,3848.8,2.59814908]
[1761230176388,0.2303,3849.6,3848.1,0.13080468]
[1761230176575,1.367,3849.5,3849.4,2.59774006]
[1761230176956,1.8226,3849.5,3847.8,0.12837729]
[1761230177185,0.4556,3849.4,3847.8,0.12837729]
[1761230177488,2.0108,3849.4,3848.1,2.59867658]
[1761230177674,1.5552,3849.2,3847.8,0.12837729]
[1761230177878,0.4556,3849.3,3847.9,0.50688]
[1761230178191,1.5552,3849.1,3846.0,2.600104]
[1761230178376,4.15326628,3849.1,3847.8,2.59888256]
[1761230178577,0.4556,3849.0,3847.8,2.59888256]
[1761230178803,0.2303,3847.9,3847.6,2.59896939]
[1761230179083,0.2303,3847.9,3846.3,3.445]
[1761230179084,0.2303,3847.9,3846.2,3.445]
[1761230179285,0.2303,3847.9,3847.8,3.10576767]
[1761230179505,0.2303,3847.9,3846.2,3.445]
[1761230179506,0.6859,3847.9,3846.2,3.445]
[1761230179656,0.6859,3847.9,3845.5,0.002]
[1761230179856,0.4556,3847.8,3847.2,2.59924179]
[1761230180077,0.4556,3847.8,3845.8,3.57661869]
[1761230180078,0.4556,3847.8,3846.5,2.59974722]
[1761230180278,0.2303,3847.9,3846.0,2.600104]
[1761230180586,2.881,3847.8,3847.7,0.50688]
[1761230180814,3.4662,3847.8,3847.5,0.50688]
[1761230181012,0.4556,3847.7,3846.2,1.5552]
[1761230181314,0.4556,3847.7,3847.0,3.10630812]
[1761230181315,0.1296,3847.1,3847.0,3.10630812]
[1761230181614,0.1296,3847.1,3847.0,2.59942812]
[1761230181818,0.1288,3847.1,3847.0,2.59942812]
[1761230181982,3.443,3847.6,3846.8,2.59952896]
[1761230181983,3.442,3847.6,3847.5,0.50688]
[1761230182310,3.442,3847.6,3846.1,3.1069164]
[1761230182510,3.442,3847.6,3847.5,3.10597031]
[1761230182713,3.442,3847.6,3847.5,0.50688]
[1761230182905,3.8976,3847.6,3847.5,0.50688]
[1761230183285,3.8976,3847.6,3847.5,3.10597031]
[1761230183600,3.442,3847.6,3847.5,3.10597031]
[1761230183787,0.2303,3847.9,3847.6,3.10587348]
[1761230183983,1.7855,3849.0,3848.0,0.50688]
[1761230183984,0.2303,3849.0,3848.0,0.50688]
[1761230184282,3.063,3849.3,3849.2,3.10482242]
[1761230184525,0.2303,3849.6,3849.5,2.59773996]
[1761230184711,0.2303,3849.6,3849.5,3.10461996]
[1761230184920,0.2303,3849.6,3849.5,2.59773996]
[1761230185120,3.445,3849.7,3849.6,3.10455248]
[1761230185317,3.445,3849.7,3849.4,0.50688]
[1761230185613,3.9006,3849.7,3848.9,0.50688]
[1761230185813,3.9006,3849.7,3848.8,2.5981533]
[1761230185814,3.9006,3849.7,3849.6,0.50688]
[1761230186319,3.9006,3849.7,3849.3,0.50688]
[1761230186504,3.445,3849.7,3849.3,3.10473743]
[1761230186711,3.445,3849.7,3849.4,3.10462932]
[1761230186908,3.445,3849.7,3849.6,0.50688]
[1761230187418,3.445,3849.7,3849.6,3.10455248]
[1761230187628,0.5157,3849.9,3849.8,3.10441753]
[1761230187790,0.5157,3849.9,3849.8,0.50688]
[1761230188320,0.9605,3849.9,3849.8,3.10441753]
[1761230188524,0.9605,3849.9,3849.8,2.59753753]
[1761230188716,0.9605,3849.9,3849.8,0.50688]
[1761230189325,0.9605,3849.9,3849.8,3.10441753]
[1761230189509,4.4115,3849.9,3849.8,3.10441753]
[1761230189705,3.9667,3849.9,3849.8,3.10441753]
[1761230190203,3.7502,3849.9,3849.8,3.10441753]
[1761230190392,3.7502,3849.9,3849.8,0.50688]
[1761230190596,4.2203,3849.9,3849.8,0.50688]
[1761230190796,4.2203,3849.9,3849.8,3.10441753]
[1761230191612,4.2203,3849.9,3848.0,2.598696]
[1761230191926,0.4701,3849.8,3848.4,2.59842555]
[1761230192129,0.4701,3849.8,3847.7,4.15415522]
[1761230192298,0.1296,3848.8,3848.3,0.1296]
[1761230192500,0.1296,3848.8,3848.7,2.59827993]
[1761230192920,0.1296,3848.8,3848.7,3.10515993]
[1761230194025,3.446,3849.0,3848.9,2.59814492]
[1761230194296,0.4701,3849.5,3849.3,0.50688]
[1761230194498,3.5736,3849.4,3849.3,3.10475493]
[1761230194817,0.1296,3849.4,3849.3,3.10475493]
[1761230195618,0.2992,3849.9,3849.8,3.10441753]
[1761230195619,0.7693,3849.9,3849.8,3.10441753]
[1761230195807,4.3449,3849.9,3849.8,0.50688]
[1761230196210,0.8989,3849.9,3849.8,3.10441753]
[1761230196414,4.3439,3849.9,3849.8,3.10441753]
[1761230196618,4.3439,3849.9,3849.8,0.50688]
[1761230196848,0.4288,3849.9,3849.8,3.10441753]
[1761230197211,0.303,3851.2,3849.9,0.50688]